[Event "Czech Open-GM 2022"]
[Site "Pardubice"]
[Date "2022.07.25"]
[Round "4.14"]
[White "Stalmach, Richard"]
[Black "Bujnoch, Radek"]
[Result "1-0"]
[ECO "D43"]
[WhiteElo "2363"]
[BlackElo "2191"]
[Annotator "TA"]
[PlyCount "113"]
[EventDate "2022.07.22"]
[EventType "swiss"]
[EventCountry "CZE"]
[SourceTitle "playchess.com"]
[Source "ChessBase"]
[SourceQuality "1"]
[TimeControl "40/5400+30:1800+30"]

{[%evp 12,113,12,17,20,9,7,20,16,16,30,25,19,14,12,-16,0,-41,-22,-30,-21,-37,-44,-45,0,-43,44,35,90,-12,-13,-64,-55,-56,-23,-77,-80,-77,-87,-85,-82,-77,-51,-64,-57,-141,0,0,0,0,0,0,189,180,182,183,139,152,577,562,572,551,538,532,499,489,441,439,441,414,414,400,403,348,485,495,539,527,905,849,860,831,1551,1162,2545,2448,29977,29978,29978,29977,29977,29978,29978,29978,29978,29979,29979,29980,29980,29981,29975,29966,29958,7175]} 1. d4 {[%emt 0:00:02]} d5 {[%emt 0:00:05]} 2. c4 {[%emt 0:00:03]} c6 {[%emt 0:00:04]} 3. Nf3 {[%emt 0:00:05]} Nf6 {[%emt 0:00:09]} 4. Nc3 {[%emt 0:00:03]} e6 {[%emt 0:00:06]} 5. Bg5 {[%emt 0:00:05]} Nbd7 {[%emt 0:01:45]} 6. cxd5 {[%emt 0:00:27]} exd5 {[%emt 0:00:07]} 7. e3 $1 {[%emt 0:00:06]} h6 {[%emt 0:00:12] D35: Queen's Gambit Declined: Exchange Variation.} 8. Bh4 {[%emt 0:00:05]} g5 {[%emt 0:00:09]} 9. Bg3 {[%emt 0:00:05]} Nh5 {[%emt 0:00:04] The position is equal.} 10. Bd3 {[%emt 0:00:05]} Nxg3 {[%emt 0:00:07]} 11. hxg3 {[%emt 0:00:04]} Bg7 {[%emt 0:01:16]} 12. O-O {[%emt 0:00:07]} Nb6 {[%emt 0:30:15]} 13. b4 {[%emt 0:00:27]} h5 {[%emt 0:07:20][%cal Bh6h5,Bh5h4][%mdl 32] [#]} 14. Nd2 $146 {[%emt 0:11:43]} ({Predecessor:} 14. b5 h4 15. bxc6 bxc6 16. Qc2 hxg3 17. fxg3 Qd6 18. Ne2 Bd7 19. Rac1 Qe7 20. e4 dxe4 21. Bxe4 {½-½ (40) Babula,V (2540)-Grischuk,A (2754) Baku 2016}) 14... g4 {[%emt 0:13:49]} 15. Ne2 {[%emt 0:05:53]} h4 {[%emt 0:03:00]} 16. Nf4 {[%emt 0:02:45]} Qe7 {[%emt 0:05:03]} 17. Re1 {[%emt 0:09:25]} Qxb4 {[%emt 0:00:50]} 18. a4 {[%emt 0:00:04][%cal Ba2a4,Ba4a5][%mdl 32]} Rb8 {[%emt 0:04:39]} (18... hxg3 $15 19. fxg3 Kf8) 19. a5 {[%emt 0:04:12][%mdl 1024] White has compensation.} Na8 {[%emt 0:00:02]} (19... Nc4 $14 20. Bxc4 dxc4) 20. Ra4 {[%emt 0:05:10] White is more active.} ({White should play} 20. gxh4 $16 {aiming for g3.} Rxh4 21. Nf1) 20... Qd6 $11 {[%emt 0:01:39]} 21. e4 {[%emt 0:00:10]} (21. Nf1 $11) 21... Kf8 {[%emt 0:05:32]} 22. e5 {[%emt 0:07:46]} Qh6 {[%emt 0:00:04]} (22... Qe7 $5 {[%cal Rg7h6]}) 23. e6 {[%emt 0:00:27]} (23. Qc2 $11 {remains equal.} Nc7 24. Qc5+ Kg8 25. Qe7 hxg3 26. fxg3) 23... hxg3 $17 {[%emt 0:00:25]} 24. fxg3 {[%emt 0:00:24]} Bxe6 {[%emt 0:01:08]} (24... b5 25. axb6 Nxb6 26. exf7 Nxa4 27. Ng6+ Kxf7 28. Re7+ Kg8 29. Re8+ Kf7 30. Re7+ Kg8 31. Re8+ Kf7 32. Re7+ $11) 25. Nxe6+ {[%emt 0:07:34]} fxe6 {[%emt 0:00:07]} 26. Qxg4 {[%emt 0:01:38]} Nc7 {[%emt 0:07:06]} (26... e5 {[#]} 27. dxe5 $1 Ke7 28. Rf4 $18) (26... Ke7 $5 {[%cal Rb8f8]} 27. Nf3 Nc7 $17) 27. Nf3 {[%emt 0:00:47]} Bf6 {[%emt 0:03:04] Inhibits Nh4.} (27... b5 $2 28. axb6 axb6 29. Ra7 $18 (29. Nh4 Kg8 $18)) 28. Ne5 {[%emt 0:05:16]} (28. Qf4 $15 Qxf4 29. gxf4) 28... Bxe5 {[%emt 0:02:09]} ({Better is} 28... Ke7 $17 {Hoping for ...Bxe5.} 29. Nf3 Kd7) 29. dxe5 $11 {[%emt 0:00:05]} Ke7 {[%emt 0:00:58]} ({Much less strong is} 29... b5 30. axb6 Rxb6 31. Rxa7 $16) 30. Qb4+ $1 {[%emt 0:04:52]} Ke8 $1 {[%emt 0:08:10][%cal Od5d4]} 31. Qd6 {[%emt 0:02:13] [#] White threatens Rh4 and mate.} Qh2+ {[%emt 0:00:57]} (31... Rc8 {gets mated.} 32. Rh4 Qg5 33. Rxh8+ Kf7 34. Rf1+) (31... Qg7 $1 $11 {and Black stays safe.} 32. Bg6+ Qxg6 33. Qxc7 Rd8 34. Qxb7 Qxg3 35. Qxc6+ Ke7 36. Qc5+ Ke8 37. Qc6+ Ke7 38. Qc5+ Ke8 39. Qc6+) 32. Kf2 $18 {[%emt 0:00:09][%cal Rd3g6]} Rf8+ {[%emt 0:00:18]} 33. Rf4 $1 {[%emt 0:00:48] Really sharp!} Rxf4+ {[%emt 0:00:06]} 34. gxf4 {[%emt 0:00:03][%cal Rd3g6]} Qh4+ $2 {[%emt 0:03:30] A mistake that costs the game.} (34... Qxf4+ $16 {is tougher.} 35. Ke2 Qg4+ 36. Kd2 Rd8 37. Qxc7 Qb4+ 38. Ke2 Qg4+ 39. Ke3 Qxg2) 35. g3 {[%emt 0:02:05][%cal Rd3g6,Bg2g3,Bg3g4,Bg4g5,Bg5g6,Bg6g7][%mdl 32]} Qe7 {[%emt 0:00:04]} 36. Rh1 {[%emt 0:05:05]} ({Not} 36. Bg6+ Kf8 $16) 36... Qxd6 {[%emt 0:00:19]} 37. exd6 {[%emt 0:00:03]} Kd7 {[%emt 0:01:09]} 38. dxc7 {[%emt 0:00:04]} Kxc7 {[%emt 0:00:04][%mdl 4096] Endgame KRB-KR} 39. g4 {[%emt 0:01:39]} c5 {[%emt 0:00:55]} 40. Bb5 {[%emt 0:02:38] White wants to mate with Rh7+.} c4 {[%emt 0:00:54]} 41. Ke3 {[%emt 0:30:47]} Kd6 {[%emt 0:03:59]} 42. g5 {[%emt 0:00:00]} Kc5 {[%emt 0:15:36]} 43. Bd7 {[%emt 0:00:00]} Kd6 {[%emt 0:01:52]} 44. Rh7 {[%emt 0:00:00] And now g6 would win.} b5 {[%emt 0:05:51]} 45. axb6 {[%emt 0:00:00]} axb6 {[%emt 0:00:14]} 46. g6 {[%emt 0:00:00] Strongly threatening Kd4.} Rf8 {[%emt 0:06:07]} 47. Rf7 {[%emt 0:00:00]} Rg8 {[%emt 0:00:22]} 48. g7 {[%emt 0:00:00] Intending Kd4 and mate.} c3 {[%emt 0:01:19]} 49. Kd4 {[%emt 0:00:00] White mates.} c2 {[%emt 0:00:36]} 50. Ba4 {[%emt 0:00:00][%csl Ga4][%cal Rf7d7]} e5+ {[%emt 0:00:11]} 51. fxe5+ {[%emt 0:00:00]} Ke6 {[%emt 0:00:05]} 52. Rc7 {[%emt 0:00:00]} c1=Q {[%emt 0:00:50]} 53. Rxc1 {[%emt 0:00:00]} Rxg7 {[%emt 0:00:10]} 54. Rc6+ {[%emt 0:00:00]} Kf5 {[%emt 0:00:15]} 55. Rf6+ {[%emt 0:00:00]} Kg5 {[%emt 0:00:05]} 56. Kxd5 {[%emt 0:00:00]} Ra7 {[%emt 0:00:26]} 57. Bc6 {[%emt 0:00:00] Weighted Error Value: White=0.14 (very precise) /Black=0.42} 1-0

[Event "Czech Open-GM 2022"]
[Site "Pardubice"]
[Date "2022.07.25"]
[Round "4.15"]
[White "Crevatin, Leo"]
[Black "Skytte, Rasmus"]
[Result "1/2-1/2"]
[ECO "A57"]
[WhiteElo "2259"]
[BlackElo "2349"]
[Annotator "TA"]
[PlyCount "60"]
[EventDate "2022.07.22"]
[EventType "swiss"]
[EventCountry "CZE"]
[SourceTitle "playchess.com"]
[Source "ChessBase"]
[SourceQuality "1"]
[TimeControl "40/5400+30:1800+30"]

{[%evp 16,60,45,33,43,59,77,74,74,62,63,-6,0,-72,40,40,45,47,58,35,68,63,67,73,142,130,109,81,85,51,71,64,87,19,9,9,64,60,56,71,74,43,66,54,57,35,49]} 1. d4 {[%emt 0:00:02]} Nf6 {[%emt 0:00:32]} 2. c4 {[%emt 0:00:04]} c5 {[%emt 0:00:17]} 3. d5 {[%emt 0:00:06]} b5 {[%emt 0:00:21]} 4. cxb5 {[%emt 0:00:06]} a6 {[%emt 0:00:08]} 5. e3 {[%emt 0:00:03]} g6 {[%emt 0:00:58]} 6. Nc3 {[%emt 0:00:06]} Bg7 {[%emt 0:00:13]} 7. a4 {[%emt 0:00:24]} O-O {[%emt 0:00:39]} 8. Nf3 {[%emt 0:00:45]} Bb7 {[%emt 0:01:15]} 9. Ra3 {[%emt 0:02:17] 9.e4 gains popularity.} e6 {[%emt 0:04:26] A57: Benko/Volga Gambit.} 10. dxe6 {[%emt 0:06:08]} fxe6 {[%emt 0:00:19]} 11. Be2 {[%emt 0:03:31]} d5 {[%emt 0:05:01] [#] White is better.} 12. O-O $1 {[%emt 0:01:03]} Qe7 {[%emt 0:05:20] [#]} 13. e4 $146 {[%emt 0:22:38]} (13. Qc2 $14) ({Predecessor:} 13. Re1 Kh8 14. Bd3 e5 15. e4 d4 16. Nb1 axb5 17. axb5 Nbd7 18. Nbd2 Nb6 19. b3 {1-0 (37) Fus,J (2357)-Ghersinich,E (2193) Bratislava 2019}) 13... axb5 {[%emt 0:11:04]} 14. e5 {[%emt 0:03:39] [#]} ({Much worse is} 14. Bxb5 d4 15. e5 Nfd7) (14. axb5 $11 {remains equal.} Rxa3 15. bxa3) 14... Ne4 {[%emt 0:16:45]} ({Better is} 14... b4 $1 $17 {[%cal Rb4a3]} 15. exf6 Bxf6 16. Nxd5 Bxd5) 15. Bxb5 $14 {[%emt 0:04:02]} Nxc3 {[%emt 0:03:47]} 16. Rxc3 {[%emt 0:02:13]} d4 {[%emt 0:01:59]} 17. Ra3 {[%emt 0:05:15]} Nd7 {[%emt 0:04:17]} 18. Bg5 {[%emt 0:04:19]} Qf7 {[%emt 0:03:11]} 19. Qe2 {[%emt 0:03:36]} h6 {[%emt 0:08:41]} (19... Bd5 $142) 20. Bd2 {[%emt 0:00:47]} Qe7 {[%emt 0:01:03]} 21. Ne1 {[%emt 0:09:39] aiming for Rg3.} Nxe5 {[%emt 0:02:24][%cal Oc5c4]} 22. Rg3 {[%emt 0:02:22] And now f4 would win.} Kh7 {[%emt 0:03:27][%cal Oc5c4]} 23. f4 {[%emt 0:01:22]} Nd7 {[%emt 0:05:09]} 24. Qg4 {[%emt 0:05:00]} (24. b3 $16) 24... Rf6 $1 $11 {[%emt 0:02:39]} 25. Nd3 $36 {[%emt 0:02:38][%mdl 2048] Black should prevent Bxd7. White has good play.} Be4 {[%emt 0:02:34]} (25... Ba6 $11) 26. Qe2 {[%emt 0:00:52]} Bf5 {[%emt 0:06:10]} 27. b3 {[%emt 0:05:14]} Rff8 {[%emt 0:05:14]} 28. Rc1 {[%emt 0:01:04]} Rfc8 {[%emt 0:00:50] White is slightly better.} 29. h3 {[%emt 0:03:54] White is more active.} Nf6 {[%emt 0:02:03]} 30. Rf3 {[%emt 0:02:02]} Ne4 {[%emt 0:01:28] Weighted Error Value: White=0.19 (very precise) /Black=0.16 (very precise)} 1/2-1/2

[Event "Czech Open-GM 2022"]
[Site "Pardubice"]
[Date "2022.07.25"]
[Round "4.16"]
[White "Jirousek, Jan"]
[Black "Farkas, Gabor"]
[Result "1/2-1/2"]
[ECO "D30"]
[WhiteElo "2094"]
[BlackElo "2335"]
[Annotator "TA"]
[PlyCount "137"]
[EventDate "2022.07.22"]
[EventType "swiss"]
[EventCountry "CZE"]
[SourceTitle "playchess.com"]
[Source "ChessBase"]
[SourceQuality "1"]
[TimeControl "40/5400+30:1800+30"]

{[%evp 9,137,3,9,7,48,35,45,29,24,22,24,21,55,-4,8,10,14,17,69,90,76,26,98,106,193,191,183,192,191,199,204,197,200,200,245,202,231,105,105,100,108,105,112,83,91,77,80,77,79,62,69,62,69,69,77,77,77,69,77,77,77,77,77,77,79,77,78,77,77,52,52,52,52,52,52,52,52,52,66,52,52,52,66,45,45,52,66,66,66,41,45,29,35,37,52,52,1131,8,8,8,8,8,8,8,8,0,0,0,0,0,0,0,0,0,0,0,0,0,0,0,0,0,8,8,8,8,8,8,8,0]} 1. d4 d5 2. c4 e6 3. Nf3 c6 4. e3 Nd7 5. Be2 Bd6 6. O-O {D30: Queen's Gambit Declined: Systems without Nc3.} Nh6 7. b3 Qe7 8. a4 {[#] White is slightly better.} O-O $146 ({Predecessor:} 8... dxc4 9. Bxc4 e5 10. Ba3 e4 11. Bxd6 Qxd6 12. Nfd2 Nf6 13. Re1 O-O 14. Nc3 Bf5 {½-½ (28) Abhishek,K (2381)-Moiseenko,V (2508) Moscow 2017}) 9. Ba3 Bxa3 10. Nxa3 b6 11. Nc2 (11. Qc2 $14) 11... dxc4 12. bxc4 c5 13. a5 Rd8 ({Black should try} 13... Bb7 $11) 14. axb6 $14 Nxb6 15. Qc1 (15. Qb1 $16) 15... Qc7 (15... Bb7 $11 {remains equal.}) 16. Qa3 $36 {[%mdl 2048] Black is under strong pressure.} cxd4 (16... Bb7 $16 {keeps fighting.}) 17. Ncxd4 $18 Bd7 (17... Nxc4 $2 18. Rfc1 $18) 18. c5 Nd5 19. c6 e5 (19... Bxc6 $2 20. Rfc1 $18) 20. cxd7 exd4 21. Nxd4 Rxd7 22. Bf3 {[#] Strongly threatening Rfc1.} Re8 23. Bxd5 (23. Rfc1 $18 Qd8 24. Rc5) 23... Rxd5 $16 24. Qxa7 (24. Rfc1 {looks sharper.} Qe5 25. Nf3 Qe4 26. Qxa7 Ng4 27. Qa4) 24... Qxa7 25. Rxa7 Nf5 26. Nxf5 Rxf5 {[%mdl 4096] Endgame KRR-KRR} 27. Ra2 g6 28. Re2 Kg7 29. f3 Ra5 30. Kf2 Re7 31. h4 h5 32. Kg3 Re6 33. Rfe1 Kf6 34. e4 Rb5 35. Ra1 Rc5 36. Rb2 Re7 {Prevents Ra7.} 37. Kf4 Kg7 38. Rba2 Rcc7 39. g4 hxg4 40. Kxg4 Rb7 41. h5 gxh5+ 42. Kxh5 Re5+ 43. Kg4 Rc5 44. Rg1 Rb6 {aiming for ...Rg6+.} 45. Kf4+ Kf6 46. Rh1 {Threatening mate with Rh6+.} Kg7 {Prevents Rh6.} 47. Ra3 Rf6+ 48. Ke3 Rg6 49. Kd4 Rb5 50. Rf1 Rd6+ 51. Ke3 f5 52. Ra7+ Kf6 $2 {[%mdl 8192] [#]} (52... Kg8 $14) 53. Kf4 $2 ({White has to play} 53. Rh1 $1 $18 {White wants to mate with Kf4.} f4+ 54. Kxf4) 53... fxe4 $1 $11 {The position is equal.} 54. fxe4 Rh5 {Inhibits Rh1.} 55. Kg4+ Kg6 56. Rff7 {White threatens Rg7+ and mate.} Rh1 (56... Rg5+ 57. Kf4 Rc5 58. Rg7+ Kh5 59. e5 $18) 57. Rf5 Rg1+ 58. Kf4 Re6 59. Raa5 Rf1+ 60. Kg3 Re1 61. Rg5+ Kf6 62. Raf5+ Ke7 63. e5 Rg1+ 64. Kf4 Rxg5 65. Rxg5 Ra6 66. Kf5 Rb6 67. Rg7+ Ke8 68. Ra7 Rc6 69. e6 {Weighted Error Value: White=0.28 (precise) /Black=0.11 (very precise)} 1/2-1/2

[Event "Czech Open-GM 2022"]
[Site "Pardubice"]
[Date "2022.07.25"]
[Round "4.17"]
[White "Livaic, Leon"]
[Black "Klimakovs, Sergejs"]
[Result "1-0"]
[ECO "B90"]
[WhiteElo "2576"]
[BlackElo "2266"]
[Annotator "TA"]
[PlyCount "63"]
[EventDate "2022.07.22"]
[EventType "swiss"]
[EventCountry "CZE"]
[SourceTitle "playchess.com"]
[Source "ChessBase"]
[SourceQuality "1"]
[TimeControl "40/5400+30:1800+30"]

{[%evp 17,63,13,5,0,45,35,31,31,41,43,51,47,65,59,67,60,79,61,87,81,107,66,92,75,139,135,143,97,96,72,109,105,135,100,95,108,142,110,221,229,218,191,1610,1513,29993,29994,29994,29995]} 1. e4 c5 2. Nf3 d6 3. d4 cxd4 4. Nxd4 Nf6 5. Nc3 a6 6. Be3 e5 7. Nf3 Be7 8. Bc4 O-O 9. O-O Be6 10. Qe2 {B90: Sicilian Najdorf: Unusual White 6th moves, 6 Be3 Ng4 and 6 Be3 e5.} h6 11. Rad1 $5 {[%mdl 4] Bxe6 is the strong threat. An interesting side line.} Qc7 12. Bb3 {White is slightly better.} Nbd7 13. Nh4 Nc5 14. Bxc5 Qxc5 {[#]} 15. Nf5 $146 ({Predecessor:} 15. Ng6 Rfe8 16. Bxe6 fxe6 17. Rd3 Rad8 18. Rg3 Nh7 19. Nxe7+ Rxe7 20. Qh5 Kh8 21. Rf3 {0-1 (39) Frolyanov,D (2570)-Gundavaa,B (2516) Khanty-Mansiysk 2013}) 15... Rfe8 16. Rd3 Bf8 17. Qf3 {[%cal Of5h6] [#] Threatens to win with Nxh6+!} Kh7 18. Rfd1 Rad8 19. R1d2 b5 20. Nd5 Ng8 ({Better is} 20... Nxd5 21. Bxd5 Rd7) 21. Rc3 $16 Qa7 22. a4 {0x0.002065c67fdddp-1022s more active pieces.} (22. Nc7 $142 b4 23. Rc6 (23. Nxe8 $2 bxc3 24. Qxc3 Bxf5 $19)) 22... Rc8 23. Rcd3 g6 24. Nfe3 {Pair of Knights!} h5 25. g4 hxg4 26. Nxg4 Kg7 27. Ndf6 Nxf6 (27... bxa4 $16 {was necessary.} 28. Nxe8+ Rxe8) 28. Qxf6+ $18 ({Not} 28. Nxf6 Red8 $16) 28... Kg8 29. Qg5 $40 {[%mdl 128] Nf6+ would kill now. White is out for blood.} ({Weaker is} 29. Rh3 Bg7 30. Qh4 Qd7 31. Bxe6 Qxe6 $14) 29... Be7 {[#]} (29... Bg7) 30. Qh6 $1 {[%cal Od3h3] Intending Rh3! and mate.} Bxg4 (30... Bg5 31. Qxg5) 31. Qxg6+ $1 Kh8 32. Qxg4 {Weighted Error Value: White=0.10 (very precise) /Black=0.63} 1-0

[Event "Czech Open-GM 2022"]
[Site "Pardubice"]
[Date "2022.07.25"]
[Round "4.18"]
[White "Kulon, Klaudia"]
[Black "Plat, Vojtech"]
[Result "1-0"]
[ECO "B07"]
[WhiteElo "2286"]
[BlackElo "2554"]
[Annotator "TA"]
[PlyCount "97"]
[EventDate "2022.07.22"]
[EventType "swiss"]
[EventCountry "CZE"]
[SourceTitle "playchess.com"]
[Source "ChessBase"]
[SourceQuality "1"]
[TimeControl "40/5400+30:1800+30"]

{[%evp 10,97,41,38,49,43,49,29,32,22,28,13,39,29,37,25,37,35,58,65,75,57,105,91,126,121,148,139,144,64,62,91,78,55,63,56,115,108,123,93,128,93,179,179,165,147,187,161,187,187,242,224,224,224,224,224,224,224,224,224,224,224,221,202,224,189,190,190,594,555,594,592,543,557,859,831,958,915,927,919,1167,1144,1704,1668,1589,1131,2002,1641,1418,1084]} 1. d4 {[%emt 0:00:06]} d6 {[%emt 0:18:19]} 2. e4 {[%emt 0:00:36]} Nf6 {[%emt 0:00:16]} 3. Nc3 {[%emt 0:00:05]} e5 {[%emt 0:00:04]} 4. dxe5 {[%emt 0:00:05]} dxe5 {[%emt 0:00:05]} 5. Qxd8+ {[%emt 0:00:07]} Kxd8 {[%emt 0:00:01]} 6. Bc4 {[%emt 0:00:10]} Ke8 {[%emt 0:00:07] outshines the older 6...Be6. B07: Pirc Defence: Miscellaneous Systems.} 7. f3 {[%emt 0:00:30]} Bc5 {[%emt 0:00:34]} 8. Nd1 {[%emt 0:02:32]} Nbd7 {[%emt 0:00:50] White has an edge.} 9. Be3 {[%emt 0:01:27]} a5 {[%emt 0:00:13]} 10. Nh3 {[%emt 0:03:04][%cal Bg1h3,Bh3f2,Bf2d3][%mdl 32]} c6 {[%emt 0:07:19]} 11. a4 {[%emt 0:02:01]} Ke7 {[%emt 0:03:00]} 12. Nhf2 {[%emt 0:01:10] [#]} Rd8 $146 {[%emt 0:03:47]} ({Predecessor:} 12... Bxe3 13. Nxe3 Nc5 14. Ke2 Rd8 15. Rhd1 Rxd1 16. Kxd1 Ne8 17. Nd3 {½-½ (17) Chernov,V (2425)-Eisenbeiser,A (2391) Walldorf 2017}) 13. Nd3 {[%emt 0:01:11]} Bxe3 {[%emt 0:00:17]} 14. Nxe3 {[%emt 0:00:02]} g6 {[%emt 0:00:09]} 15. O-O-O {[%emt 0:01:41]} Ne8 {[%emt 0:04:39]} (15... Nh5 $14) 16. h4 {[%emt 0:05:40][%cal Bh2h4,Bh4h5][%mdl 32] 0x0.0002de42c366dp-1022s more active pieces. The black rooks are badly placed.} Nd6 {[%emt 0:01:26]} 17. g4 {[%emt 0:04:06]} h6 {[%emt 0:04:28]} 18. Bb3 b6 {[%emt 0:02:20]} 19. Rd2 {[%emt 0:03:29]} (19. h5 $16 {And now hxg6 would win.} g5 20. Rd2) 19... Ba6 $14 {[%emt 0:06:46]} 20. h5 {[%emt 0:04:36]} Bxd3 {[%emt 0:01:04]} 21. Rxd3 {[%emt 0:00:57] Strongly threatening hxg6.} Nc5 {[%emt 0:00:58]} 22. Rd2 {[%emt 0:00:54]} g5 {[%emt 0:05:49]} (22... Nxb3+ $14 23. cxb3 Nb7) 23. Rhd1 $16 {[%emt 0:00:15][%cal Od2d6] [#] Threatens to win with Rxd6!} Ncb7 {[%emt 0:00:06]} 24. c3 {[%emt 0:00:25]} f6 {[%emt 0:13:09]} 25. Bc2 {[%emt 0:00:50]} Rac8 {[%emt 0:03:09] [#]} (25... Ke8 $16) 26. b4 $1 $18 {[%emt 0:00:53]} Kf8 {[%emt 0:03:13]} 27. Kb2 {[%emt 0:01:01]} Ra8 {[%emt 0:00:29]} 28. Bb3 {[%emt 0:01:21]} axb4 {[%emt 0:04:55]} 29. cxb4 {[%emt 0:00:02]} b5 {[%emt 0:05:08]} (29... Rac8 {might work better.} 30. Kc3 Rb8) 30. a5 {[%emt 0:01:42]} Ke7 {[%emt 0:00:22]} 31. Rd3 {[%emt 0:09:28]} Ra6 {[%emt 0:04:16]} 32. Rc1 {[%emt 0:03:34]} Rc8 {[%emt 0:02:30]} 33. Rdc3 {[%emt 0:08:59][%cal Bd3c3,Bc3c2,Bc2d2][%mdl 32]} Kd7 {[%emt 0:00:25]} 34. Ba2 {[%emt 0:00:19]} Rd8 {[%emt 0:03:21]} 35. R3c2 {[%emt 0:05:39]} Rc8 {[%emt 0:00:49]} 36. Kb1 {[%emt 0:00:28]} Raa8 {[%emt 0:01:53]} 37. Nf5 {[%emt 0:05:36]} Nxf5 {[%emt 0:00:04]} 38. exf5 {[%emt 0:00:03] Black must now prevent Be6+.} ({Don't play} 38. gxf5 $6 Rc7 $16) 38... Nd8 {[%emt 0:01:44] Inhibits Be6+.} (38... Rc7 {is a better chance.} 39. Be6+ Kd6) 39. Rd2+ {[%emt 0:00:21] White is clearly winning.} Ke7 {[%emt 0:00:04]} 40. Rcd1 {[%emt 0:00:26]} Rc7 {[%emt 0:01:23] Inhibits Rd7+.} 41. Rd6 {[%emt 0:30:17]} c5 {[%emt 0:30:33]} 42. bxc5 {[%emt 0:01:16]} b4 {[%emt 0:00:54]} 43. a6 {[%emt 0:05:06]} Rxc5 {[%emt 0:00:00]} 44. Rd7+ {[%emt 0:00:00]} Ke8 {[%emt 0:00:00]} 45. Rh7 {[%emt 0:00:00]} b3 {[%emt 0:00:00]} 46. Bxb3 {[%emt 0:00:00] Rdd7 would kill now.} Rb5 {[%emt 0:00:00]} 47. Kb2 {[%emt 0:00:00]} e4 {[%emt 0:00:00]} 48. fxe4 {[%emt 0:00:00]} Rab8 {[%emt 0:00:00]} 49. Rd3 {[%emt 0:00:00] Weighted Error Value: White=0.10 (very precise) /Black=0.29 (precise)} 1-0